bitfinex-derivatives/quotes_SOLF0:USTF0_20241216
["timestamp","ask_amount","ask_price","bid_price","bid_amount"]
[1734341316143,2.18,219.66,219.54,6.6368]
[1734341316443,5.50226519,219.72,219.55,5.04345079]
[1734341316648,2.9636,219.76,219.56,5.04345079]
[1734341316945,2.18,219.75,219.57,5.04345079]
[1734341317143,2.18,219.75,219.54,6.6368]
[1734341317144,2.18,219.75,219.58,5.04345079]
[1734341317347,7.52957905,219.75,219.59,7.22345079]
[1734341317649,7.52957905,219.75,219.6,5.04345079]
[1734341317948,7.52957905,219.75,219.61,5.04345079]
[1734341318148,7.52957905,219.75,219.62,6.61735079]
[1734341318346,2.2763,219.74,219.69,2.2766]
[1734341321550,2.2763,219.73,219.67,2.2768]
[1734341321853,7.52957905,219.75,219.64,2.18]
[1734341322345,2.2764,219.72,219.68,2.2768]
[1734341322743,7.52957905,219.75,219.64,2.18]
[1734341323045,7.52957905,219.75,219.69,2.2767]
[1734341323449,2.2764,219.73,219.69,2.2767]
[1734341323956,7.52957905,219.75,219.67,2.2769]
[1734341324155,7.52957905,219.75,219.64,2.18]
[1734341324451,7.52957905,219.75,219.69,2.2766]
[1734341325550,2.2763,219.73,219.69,2.2766]
[1734341327755,7.52957905,219.75,219.64,2.18]
[1734341327954,2.2767,219.7,219.66,2.277]
[1734341328454,2.2767,219.7,219.69,6.30698015]
[1734341333264,7.52957905,219.75,219.69,6.30698015]
[1734341333461,7.52957905,219.75,219.73,6.30698015]
[1734341333754,2.18,219.76,219.73,6.30698015]
[1734341333959,4.456,219.76,219.75,6.30698015]
[1734341335056,4.456,219.76,219.63,3.0567]
[1734341335057,2.2765,219.72,219.65,2.18]
[1734341335255,2.18,219.76,219.71,6.30698015]
[1734341335455,2.18,219.76,219.74,6.30698015]
[1734341335757,4.456,219.76,219.74,6.30698015]
[1734341335956,1.5738,219.82,219.74,6.30698015]
[1734341336156,1.5738,219.82,219.76,6.30698015]
[1734341336457,2.2757,219.8,219.78,6.30698015]
[1734341336956,2.2752,219.84,219.78,6.30698015]
[1734341337151,2.2752,219.84,219.83,6.30698015]
[1734341338060,4.4551,219.85,219.83,6.30698015]
[1734341338657,0.5138,219.86,219.83,6.30698015]
[1734341338857,0.5138,219.86,219.85,6.30698015]
[1734341342665,5.33455579,219.9,219.85,6.30698015]
[1734341343660,2.275,219.86,219.85,6.30698015]
[1734341345361,5.33455579,219.9,219.76,2.18]
[1734341345564,8.48698015,219.89,219.81,6.30698015]
[1734341346657,8.48698015,219.89,219.78,6.30698015]
[1734341346658,6.30698015,219.85,219.78,6.30698015]
[1734341346859,2.18,219.84,219.78,6.30698015]
[1734341347763,2.2757,219.8,219.78,6.30698015]
[1734341349069,2.18,219.84,219.73,2.2762]
[1734341349262,2.18,219.84,219.77,6.30698015]
[1734341349965,2.2759,219.78,219.77,6.30698015]
[1734341352872,6.30698015,219.83,219.76,6.30698015]
[1734341353769,2.18,219.84,219.55,4.5565]
[1734341353967,6.30698015,219.77,219.7,6.30698015]
[1734341354168,2.18,219.76,219.7,6.30698015]
[1734341354669,6.30698015,219.75,219.68,6.30698015]
[1734341355471,2.2768,219.69,219.68,6.30698015]
[1734341355671,2.2768,219.69,219.62,3.071]
[1734341355672,2.18,219.69,219.62,3.071]
[1734341355876,2.18,219.69,219.66,6.30698015]
[1734341356075,2.18,219.69,219.64,6.30698015]
[1734341357675,2.18,219.69,219.62,6.30698015]
[1734341357879,8.48698015,219.69,219.62,6.30698015]
[1734341358080,2.2775,219.63,219.62,6.30698015]
[1734341358374,4.4575,219.63,219.62,6.30698015]
[1734341358980,2.2777,219.61,219.56,1.5382]
[1734341359277,2.18,219.63,219.59,6.30698015]
[1734341359675,2.2778,219.6,219.59,6.30698015]
[1734341359877,2.18,219.63,219.59,6.30698015]
[1734341360178,2.18,219.63,219.61,6.30698015]
[1734341360579,16.43715084,219.74,219.61,6.30698015]
[1734341360779,6.30698015,219.69,219.61,6.30698015]
[1734341360970,2.18,219.68,219.61,6.30698015]
[1734341362476,2.2776,219.62,219.61,6.30698015]
[1734341367778,2.18,219.63,219.58,6.30698015]
[1734341367985,8.48698015,219.63,219.51,1.5701]
[1734341368286,2.2781,219.55,219.54,6.30698015]
[1734341368478,4.4581,219.55,219.54,6.30698015]
[1734341368675,4.4581,219.55,219.51,1.5701]
[1734341368676,2.18,219.55,219.52,6.30698015]
[1734341370391,2.2783,219.53,219.52,6.30698015]
[1734341370884,2.2782,219.54,219.52,6.30698015]
[1734341371090,2.18,219.55,219.52,6.30698015]
[1734341371389,2.2783,219.53,219.52,6.30698015]
[1734341374093,2.18,219.55,219.51,6.30698015]
[1734341374989,2.18,219.55,219.48,3.059]
[1734341374990,2.2788,219.49,219.48,3.059]
[1734341375390,2.2788,219.49,219.48,9.36598015]
[1734341375894,2.2788,219.49,219.48,6.30698015]
[1734341376087,2.279,219.47,219.46,6.30698015]
[1734341376287,2.18,219.5,219.43,1.5288]
[1734341376487,2.18,219.5,219.44,6.30698015]
[1734341376690,6.30698015,219.49,219.41,3.0151]
[1734341377095,6.30698015,219.47,219.41,6.30698015]
[1734341377394,2.2795,219.42,219.41,6.30698015]
[1734341377891,2.2795,219.42,219.35,1.5288]
[1734341377892,2.18,219.43,219.36,3.0299]
[1734341378090,2.2797,219.41,219.4,6.30698015]
[1734341378284,2.18,219.43,219.4,6.30698015]
[1734341378485,2.18,219.43,219.42,6.30698015]
[1734341378689,4.4595,219.43,219.42,6.30698015]
[1734341379997,2.2793,219.44,219.42,6.30698015]
[1734341380201,6.30698015,219.52,219.43,6.30698015]
[1734341380403,5.56327109,219.54,219.47,6.30698015]
[1734341380695,2.18,219.53,219.49,6.30698015]
[1734341381090,2.2787,219.5,219.49,6.30698015]
[1734341382993,2.18,219.53,219.49,6.30698015]
[1734341383200,2.18,219.53,219.51,6.30698015]
[1734341383606,2.18,219.53,219.49,6.30698015]
[1734341383898,2.2787,219.5,219.49,6.30698015]
[1734341384093,2.18,219.53,219.45,11.45673282]
[1734341385501,2.2788,219.5,219.45,11.45673282]
[1734341387199,2.18,219.53,219.45,11.45673282]
[1734341387500,2.2211,219.64,219.48,9.87333282]
[1734341387501,2.2785,219.52,219.48,9.87333282]
[1734341388411,1.5491,219.66,219.51,9.87333282]
[1734341388412,2.2779,219.58,219.51,9.87333282]
[1734341388698,2.2779,219.58,219.45,11.45673282]
[1734341388699,7.53067292,219.65,219.54,9.87333282]
[1734341389001,2.2779,219.57,219.55,2.18]
[1734341389793,0.25927,219.64,219.53,3.1095]
[1734341392206,0.25927,219.64,219.52,2.18]
[1734341393407,2.2781,219.55,219.52,2.18]
[1734341395007,0.25927,219.64,219.51,12.05333282]
[1734341395212,2.2784,219.52,219.51,12.05333282]
[1734341395506,2.2784,219.52,219.51,2.18]
[1734341395812,2.2784,219.52,219.48,9.87333282]
[1734341395813,2.2787,219.5,219.48,9.87333282]
[1734341396111,2.2787,219.5,219.48,12.05333282]
[1734341397515,9.87333282,219.59,219.47,2.9456]
[1734341399409,2.2789,219.48,219.47,2.9456]
[1734341400312,2.2789,219.48,219.47,7.98233751]
[1734341400909,2.2789,219.48,219.47,2.9456]
[1734341401114,2.2789,219.48,219.47,7.98233745]
[1734341401709,2.2789,219.48,219.47,5.03673745]
[1734341401914,2.2791,219.46,219.45,1.5834]
[1734341402114,2.2791,219.46,219.45,6.62126918]
[1734341403410,2.18,219.54,219.45,16.494602]
[1734341403608,2.18,219.54,219.46,7.21944504]
[1734341403809,2.18,219.57,219.47,5.03944504]
[1734341404010,2.18,219.57,219.46,3.6677]
[1734341404011,8.4976165,219.57,219.5,6.3176165]
[1734341404508,2.2785,219.52,219.48,2.2789]
[1734341405108,8.4976165,219.57,219.47,2.2789]
[1734341405312,8.4976165,219.57,219.5,6.3176165]
[1734341405820,2.2785,219.51,219.5,6.3176165]
[1734341406813,6.3176165,219.54,219.48,6.3176165]
[1734341407608,6.3176165,219.54,219.46,5.2379]
[1734341407919,2.2789,219.49,219.48,6.3176165]
[1734341408416,2.279,219.47,219.46,6.3176165]
[1734341408715,2.18,219.52,219.36,2.9457]
[1734341409017,2.2794,219.43,219.39,2.2797]
[1734341409217,2.2794,219.43,219.4,5.04552189]
[1734341409520,2.2794,219.43,219.41,5.04552189]
[1734341409720,2.2794,219.43,219.42,5.04552189]
[1734341409919,2.2794,219.43,219.42,11.36313839]
[1734341410114,2.2793,219.44,219.42,11.36313839]
[1734341410312,8.4976165,219.52,219.43,6.3176165]
[1734341410517,8.4976165,219.52,219.45,6.3176165]
[1734341410919,2.18,219.55,219.47,6.3176165]
[1734341411127,8.4976165,219.55,219.47,6.3176165]
[1734341411319,2.2788,219.49,219.47,6.3176165]
[1734341411918,6.3176165,219.53,219.47,6.3176165]
[1734341412319,11.67000372,219.53,219.47,6.3176165]
[1734341412821,5.35238722,219.53,219.47,6.3176165]
[1734341413216,6.3176165,219.54,219.47,6.3176165]
[1734341413828,6.3176165,219.52,219.45,7.7816165]
[1734341414725,2.279,219.47,219.46,5.05620683]
[1734341415223,2.279,219.47,219.45,7.7816165]
[1734341415418,2.279,219.47,219.46,5.0568148]
[1734341418922,2.279,219.47,219.36,2.934]
[1734341418923,2.2795,219.43,219.39,2.18]
[1734341419221,2.18,219.5,219.36,2.934]
[1734341419222,6.3176165,219.45,219.4,5.05877555]
[1734341419421,6.3176165,219.45,219.41,5.05877555]
[1734341420828,2.2793,219.44,219.42,11.3761747]
[1734341421022,2.18,219.47,219.43,5.0585582]
[1734341421217,6.3176165,219.5,219.44,11.3761747]
[1734341421415,2.279,219.47,219.45,5.0585582]
[1734341421640,6.3176165,219.5,219.44,6.3176165]
[1734341421816,6.3176165,219.5,219.45,5.05755554]
[1734341422025,6.3176165,219.5,219.46,5.05755554]
[1734341422326,6.3176165,219.5,219.44,6.3176165]
[1734341422525,2.18,219.51,219.45,5.05731405]
[1734341422722,6.3176165,219.49,219.46,5.05731405]
[1734341422918,6.3176165,219.49,219.42,6.3176165]
[1734341423226,6.3176165,219.49,219.43,5.05731492]
[1734341423422,6.3176165,219.49,219.44,5.05731492]
[1734341423626,6.3176165,219.49,219.45,5.05731492]
[1734341423821,6.3176165,219.49,219.46,5.05731492]
[1734341424125,2.2793,219.44,219.42,6.3176165]
[1734341424321,5.5362068,219.5,219.43,5.057111]
[1734341424523,5.5362068,219.5,219.42,6.3176165]
[1734341424524,5.5362068,219.5,219.44,11.3747275]
[1734341424724,5.5362068,219.5,219.45,5.057111]
[1734341424925,5.5362068,219.5,219.46,5.057111]
[1734341425225,2.2791,219.46,219.44,6.3176165]
[1734341425426,2.2791,219.46,219.45,5.0568844]
[1734341428221,2.2791,219.46,219.42,6.3176165]
[1734341428222,2.2792,219.45,219.42,6.3176165]
[1734341428524,2.2792,219.45,219.43,5.05639891]
[1734341428728,2.2792,219.45,219.44,5.05639891]
[1734341431326,286.28276924,219.61,219.44,11.37401541]
[1734341431530,6.3176165,219.54,219.47,6.3176165]
[1734341432026,2.2787,219.5,219.47,6.3176165]
[1734341432325,6.3176165,219.54,219.47,6.3176165]
[1734341432326,11.70065447,219.54,219.47,6.3176165]
[1734341433726,6.3176165,219.57,219.51,6.3176165]
[1734341434525,2.2781,219.55,219.51,6.3176165]
[1734341434826,2.2781,219.55,219.48,2.18]
[1734341435026,2.2781,219.55,219.51,6.3176165]
[1734341435423,2.2783,219.54,219.51,6.3176165]
[1734341436328,0.19184,219.56,219.51,6.3176165]
[1734341437425,2.2781,219.54,219.51,6.3176165]
[1734341437622,0.19184,219.56,219.53,6.3176165]
[1734341438519,2.46974,219.56,219.53,6.3176165]
[1734341438721,6.3176165,219.61,219.53,6.3176165]
[1734341439028,6.3176165,219.61,219.53,8.4976165]
[1734341439227,6.3176165,219.59,219.53,2.18]
[1734341439532,2.18,219.6,219.51,6.3176165]
[1734341439727,6.3176165,219.59,219.51,6.3176165]
[1734341440126,2.2781,219.55,219.51,6.3176165]
[1734341440930,2.2781,219.55,219.51,8.5960165]
[1734341441327,2.2779,219.57,219.51,8.5960165]
[1734341441528,6.3176165,219.59,219.51,8.5960165]
[1734341441832,6.3176165,219.59,219.47,5.38575379]
[1734341442129,6.3176165,219.55,219.48,5.0560255]
[1734341442332,2.2783,219.52,219.49,5.0560255]
[1734341442530,6.3176165,219.53,219.46,10.7764165]
[1734341442729,6.3176165,219.53,219.47,5.05607453]
[1734341442926,6.3176165,219.53,219.46,10.7764165]
[1734341442927,2.2785,219.51,219.48,5.05607453]
[1734341443247,2.2785,219.51,219.48,6.3176165]
[1734341443733,2.2782,219.53,219.5,6.3176165]
[1734341443930,11.80896258,219.61,219.52,6.3176165]
[1734341444132,2.2777,219.57,219.54,6.3176165]
[1734341444631,16.58484659,219.61,219.56,6.3176165]
[1734341444829,6.3176165,219.63,219.56,6.3176165]
[1734341445936,22.90280681,219.63,219.56,6.3176165]
[1734341446135,16.58519031,219.62,219.56,6.3176165]
[1734341446348,6.59296149,219.61,219.56,6.3176165]
[1734341446527,2.2776,219.59,219.56,6.3176165]
[1734341447234,6.59144296,219.63,219.58,6.3176165]
[1734341447434,16.58138153,219.66,219.61,6.3176165]
[1734341447633,16.58138153,219.65,219.63,6.3176165]
[1734341447834,6.59144296,219.64,219.63,6.3176165]
[1734341448039,9.98689939,219.69,219.63,6.3176165]
[1734341448331,9.98689939,219.69,219.65,6.3176165]
[1734341448332,16.57834235,219.68,219.65,6.3176165]
[1734341448529,16.57834235,219.67,219.65,6.3176165]
[1734341448732,16.57834235,219.66,219.65,6.3176165]
[1734341448938,6.59144296,219.66,219.65,6.3176165]
[1734341449129,2.18,219.73,219.65,6.3176165]
[1734341449130,6.97414236,219.71,219.65,6.3176165]
[1734341449440,6.3176165,219.75,219.68,6.3176165]
[1734341449739,2.2763,219.71,219.66,8.4976165]
[1734341449933,2.2763,219.71,219.64,2.18]
[1734341450134,7.70089623,219.75,219.64,2.18]
[1734341450335,2.2762,219.72,219.66,2.2768]
[1734341450740,2.2764,219.7,219.65,2.2769]
[1734341450941,7.70089623,219.75,219.65,2.2769]
[1734341451737,7.70089623,219.75,219.63,9.85533978]
[1734341451932,7.70089623,219.75,219.64,2.18]
[1734341452237,9.85533978,219.74,219.64,2.18]
[1734341452630,9.85533978,219.74,219.62,1.4338]
[1734341452839,9.85533978,219.71,219.61,2.18]
[1734341453032,12.03533978,219.71,219.6,2.18]
[1734341453236,2.2769,219.65,219.59,4.4575]
[1734341454338,12.03533978,219.71,219.59,4.4575]
[1734341454535,2.277,219.64,219.59,4.4575]
[1734341455130,12.03533978,219.71,219.59,12.03533978]
[1734341455337,12.03533978,219.71,219.6,2.2773]
[1734341455631,2.18,219.71,219.59,12.03533978]
[1734341455830,2.2766,219.69,219.62,9.85533978]
[1734341456034,5.52089623,219.75,219.62,9.85533978]
[1734341456734,5.52089623,219.75,219.65,9.85533978]
[1734341457040,5.52089623,219.75,219.66,2.18]
[1734341457041,2.2764,219.7,219.66,2.18]
[1734341458138,2.2765,219.69,219.66,2.18]
[1734341459043,12.03533978,219.77,219.66,2.18]
[1734341459238,5.48078258,219.76,219.66,2.18]
[1734341460940,9.85533978,219.74,219.62,9.85533978]
[1734341461144,9.85533978,219.74,219.63,2.18]
[1734341461542,2.2769,219.65,219.63,2.18]
[1734341461944,2.277,219.64,219.63,2.18]
[1734341462145,2.277,219.64,219.6,6.82573142]
[1734341462344,9.85533978,219.71,219.6,2.18]
[1734341462648,2.2773,219.62,219.6,2.18]
[1734341462844,9.85533978,219.71,219.6,2.18]
[1734341463044,2.2772,219.62,219.6,2.18]
[1734341463250,9.85533978,219.71,219.6,2.18]
[1734341463843,2.2771,219.63,219.6,2.18]
[1734341464645,9.85533978,219.71,219.6,2.18]
[1734341464844,2.18,219.72,219.6,12.03533978]
[1734341466054,2.277,219.64,219.6,12.03533978]
[1734341466850,2.2772,219.63,219.6,12.03533978]
[1734341467054,9.85533978,219.71,219.6,12.03533978]
[1734341467450,2.2773,219.62,219.6,12.03533978]
[1734341468354,2.18,219.72,219.6,12.03533978]
[1734341468654,2.18,219.74,219.6,12.03533978]
[1734341468854,2.2767,219.68,219.63,2.2771]
[1734341469246,2.18,219.74,219.63,2.2771]
[1734341469446,15.33612236,219.76,219.63,9.85533978]
[1734341469648,2.9692,219.78,219.66,9.85533978]
[1734341469649,1.5125,219.78,219.66,9.85533978]
[1734341469955,1.5125,219.78,219.69,9.85533978]
[1734341470155,1.5125,219.78,219.7,2.18]
[1734341470660,2.2763,219.72,219.7,2.18]
[1734341470953,1.5125,219.78,219.7,2.18]
[1734341471142,1.5125,219.78,219.67,2.18]
[1734341471753,2.2765,219.69,219.67,2.18]
[1734341472348,2.2765,219.7,219.67,2.18]
[1734341472550,1.5125,219.78,219.67,2.18]
[1734341474453,0.32834,219.8,219.69,9.85533978]
[1734341474970,0.32834,219.8,219.72,9.85533978]
[1734341475150,0.32834,219.8,219.73,2.18]
[1734341475368,2.60384,219.8,219.74,2.2759]
[1734341475955,2.60384,219.8,219.75,2.2759]
[1734341476147,0.32834,219.8,219.73,2.18]
[1734341476350,0.32834,219.8,219.75,9.85533978]
[1734341476551,0.32834,219.8,219.72,9.85533978]
[1734341476858,2.276,219.75,219.69,12.03533978]
[1734341477059,0.32834,219.8,219.69,14.31183978]
[1734341477458,2.2761,219.74,219.69,14.31183978]
[1734341477761,2.2761,219.74,219.69,19.72851824]
[1734341477958,9.85533978,219.79,219.69,2.18]
[1734341478266,2.2763,219.71,219.69,2.18]
[1734341479352,9.85533978,219.79,219.69,2.18]
[1734341479756,0.32834,219.8,219.69,2.18]
[1734341480454,2.276,219.75,219.7,2.2764]
[1734341481351,2.276,219.75,219.69,2.18]
[1734341481352,2.2758,219.77,219.72,2.2762]
[1734341481552,2.2758,219.77,219.72,12.13153978]
[1734341481955,2.2758,219.76,219.73,2.18]
[1734341482452,2.18,219.84,219.73,2.18]
[1734341482654,2.2758,219.76,219.73,2.18]
[1734341483264,2.2757,219.77,219.73,2.18]
[1734341483654,0.38236,219.82,219.73,2.18]
[1734341484659,10.23769978,219.82,219.73,2.18]
[1734341484888,12.41769978,219.82,219.71,2.18]
[1734341485359,2.276,219.75,219.71,2.18]
[1734341485755,12.41769978,219.82,219.71,2.18]
[1734341486762,2.2761,219.74,219.71,2.18]
[1734341487058,0.38236,219.82,219.72,9.85533978]
[1734341487256,2.2753,219.81,219.77,2.2757]
[1734341487461,2.2753,219.81,219.76,2.18]
[1734341487656,2.2753,219.81,219.76,12.03533978]
[1734341488557,2.2753,219.81,219.77,2.2757]
[1734341488863,2.2754,219.8,219.76,12.03533978]
[1734341489059,2.2754,219.8,219.76,14.31113978]
[1734341489259,0.38236,219.82,219.76,12.03533978]
[1734341489560,0.38236,219.82,219.79,9.85533978]
[1734341489758,0.38236,219.82,219.8,2.2754]
[1734341489957,0.38236,219.82,219.77,4.5359]
[1734341490365,0.38236,219.82,219.78,2.16]
[1734341491163,2.2753,219.81,219.78,2.16]
[1734341491367,0.38236,219.82,219.78,2.16]
[1734341491661,0.38236,219.82,219.73,2.16]
[1734341491969,2.2758,219.77,219.73,2.16]
[1734341492161,0.38236,219.82,219.73,2.16]
[1734341492365,0.38236,219.82,219.74,9.85533978]
[1734341493467,2.2754,219.81,219.77,2.2757]
[1734341493859,0.38236,219.82,219.74,9.85533978]
[1734341494058,0.38236,219.82,219.75,2.16]
[1734341494371,0.38236,219.82,219.73,2.16]
[1734341494869,2.16,219.81,219.73,2.16]
[1734341495072,2.2759,219.75,219.73,2.16]
[1734341495263,2.2759,219.75,219.71,2.2763]
[1734341495465,2.16,219.81,219.71,12.01533978]
[1734341495664,2.2758,219.77,219.72,2.2761]
[1734341496171,2.2758,219.77,219.73,2.2761]
[1734341497063,2.2758,219.77,219.72,2.2762]
[1734341497465,10.23769978,219.82,219.69,6.8124]
[1734341497765,10.23769978,219.82,219.71,2.16]
[1734341497965,2.2761,219.74,219.72,5.04494905]
[1734341498161,10.23769978,219.82,219.71,2.16]
[1734341498362,10.23769978,219.82,219.72,5.04495089]
[1734341498568,2.2763,219.72,219.69,3.7349]
[1734341498872,2.2763,219.72,219.59,1.5735]
[1734341498873,9.85533978,219.76,219.66,2.16]
[1734341499071,2.2767,219.68,219.65,2.16]
[1734341499274,2.2767,219.68,219.66,5.03943649]
[1734341499470,2.16,219.74,219.65,2.16]
[1734341499667,2.2765,219.69,219.64,2.277]
[1734341499873,2.2765,219.69,219.65,5.03708031]
[1734341500076,2.16,219.74,219.64,7.74994658]
[1734341500277,2.9963,219.78,219.65,14.89240472]
[1734341500470,2.9963,219.78,219.66,5.0349575]
[1734341500471,5.1563,219.78,219.66,5.0349575]
[1734341500776,5.1563,219.78,219.67,5.03476776]
[1734341500967,5.1563,219.78,219.68,2.2765]
[1734341501173,2.9963,219.78,219.68,2.2765]
[1734341501674,1.5215,219.78,219.68,2.2765]
[1734341502072,2.16,219.79,219.7,2.2763]
[1734341502374,2.16,219.81,219.69,2.16]
[1734341502767,2.16,219.81,219.69,3.7186]
[1734341502966,2.2755,219.78,219.72,2.2761]
[1734341503278,2.2755,219.78,219.71,9.85533978]
[1734341503577,0.38236,219.82,219.74,9.85533978]
[1734341503772,0.38236,219.82,219.75,2.16]
[1734341504175,0.38236,219.82,219.76,2.2757]
[1734341504572,2.2753,219.81,219.76,2.2757]
[1734341506176,0.38236,219.82,219.75,2.16]
[1734341506380,2.2754,219.8,219.75,4.4358]
[1734341507477,2.2754,219.8,219.76,2.2757]
[1734341507877,2.2756,219.77,219.75,2.16]
[1734341508078,2.2756,219.77,219.74,2.16]
[1734341508289,0.38236,219.82,219.74,2.16]
[1734341508881,0.38236,219.82,219.73,2.16]
[1734341509679,9.85533978,219.85,219.73,2.16]
[1734341510482,2.2757,219.77,219.73,2.16]
[1734341511285,9.85533978,219.85,219.73,2.16]
[1734341511486,2.2755,219.79,219.73,2.16]
[1734341511887,2.2753,219.81,219.73,2.16]
[1734341512082,3.6391,219.87,219.74,9.85533978]
[1734341512282,251.0289171,219.97,219.79,2.2753]
[1734341512587,7.73253398,219.89,219.79,2.2753]
[1734341513286,2.275,219.83,219.79,2.2753]
[1734341513481,2.275,219.83,219.78,4.4355]
[1734341516185,2.2749,219.85,219.8,2.2753]
[1734341516387,2.2749,219.85,219.78,2.16]
[1734341516388,5.57253398,219.89,219.78,2.16]
[1734341516589,2.16,219.9,219.78,3.7223]
[1734341516783,2.2747,219.87,219.83,2.275]
[1734341517398,2.2745,219.88,219.83,2.275]
[1734341518201,2.16,219.91,219.83,2.275]
[1734341518384,2.2746,219.87,219.83,4.435]
[1734341520087,2.2749,219.84,219.8,12.13063978]
[1734341520291,5.58192722,219.92,219.8,12.01533978]
[1734341520891,2.2747,219.86,219.82,2.275]
[1734341521892,2.2749,219.84,219.8,2.2753]
[1734341522087,9.85533978,219.91,219.79,10.55260292]
[1734341522792,2.275,219.84,219.79,10.55260292]
[1734341523886,9.85533978,219.91,219.79,10.55260292]
[1734341523887,2.275,219.83,219.79,10.55260292]
[1734341524195,12.01533978,219.88,219.77,2.16]
[1734341524695,2.16,219.9,219.77,17.38615702]
[1734341525094,2.2747,219.86,219.82,2.275]
[1734341525292,5.58192722,219.92,219.82,2.16]
[1734341525691,5.58192722,219.92,219.77,15.22615702]
[1734341525893,9.85533978,219.9,219.78,2.16]
[1734341526491,2.275,219.84,219.8,2.2753]
[1734341526993,9.85533978,219.9,219.78,2.16]
[1734341527190,2.66193,219.93,219.82,2.2751]
[1734341527191,12.51726978,219.93,219.82,2.2751]
[1734341527388,5.56116844,219.91,219.78,2.16]
[1734341527891,2.2749,219.85,219.81,2.2752]
[1734341528090,2.2749,219.85,219.8,6.2988301]
[1734341528291,2.2749,219.85,219.82,6.2988301]
[1734341528996,6.2988301,219.88,219.8,6.2988301]
[1734341529498,6.2988301,219.84,219.77,2.16]
[1734341529995,6.2988301,219.82,219.73,1.4765]
[1734341530295,6.2988301,219.78,219.71,9.9586301]
[1734341531396,2.2758,219.75,219.71,12.2348301]
[1734341531697,6.2988301,219.78,219.71,9.9586301]
[1734341532000,12.01017791,219.82,219.71,3.6598]
[1734341532401,2.2757,219.76,219.72,2.2761]
[1734341532797,12.01017791,219.82,219.71,2.16]
[1734341533297,12.01017791,219.82,219.68,9.85017791]
[1734341533298,2.276,219.73,219.69,2.2765]
[1734341534304,2.2759,219.75,219.68,12.01017791]
[1734341534499,2.2759,219.75,219.69,5.01001136]
[1734341534803,2.2759,219.75,219.68,12.01017791]
[1734341535005,2.2759,219.75,219.7,2.2762]
[1734341535207,2.2757,219.77,219.68,12.01017791]
[1734341535708,2.2757,219.77,219.69,5.00980347]
[1734341535902,2.2757,219.77,219.68,12.01017791]
[1734341536213,2.2757,219.77,219.68,17.38720036]
[1734341536404,2.2757,219.77,219.69,6.15292763]
[1734341536604,2.2757,219.77,219.68,17.38720036]
[1734341536605,2.2757,219.77,219.7,5.01425225]
[1734341536795,2.2757,219.77,219.68,17.38720036]
[1734341536999,2.2757,219.77,219.69,6.15345161]
[1734341537196,2.2757,219.77,219.71,9.85017791]
[1734341537402,2.2757,219.77,219.73,2.276]
[1734341537998,2.2753,219.8,219.73,2.16]
[1734341538207,4.5109,219.87,219.74,9.85017791]
[1734341538403,3.6865,219.87,219.77,9.85017791]
[1734341538604,3.6865,219.87,219.78,2.16]
[1734341539103,1.5265,219.87,219.78,2.16]
[1734341539310,2.16,219.91,219.8,9.85017791]
[1734341539704,2.2744,219.89,219.83,2.275]
[1734341539899,5.41564375,219.92,219.83,2.275]
[1734341540104,0.39447,219.86,219.83,2.275]
[1734341540905,0.39447,219.86,219.84,2.2748]
[1734341541205,1.4868,219.95,219.84,2.16]
[1734341541409,3.6468,219.95,219.84,2.16]
[1734341541611,3.6468,219.95,219.88,2.2745]
[1734341541804,3.6468,219.95,219.84,3.7202]
[1734341542108,3.6468,219.95,219.85,5.03074949]
[1734341542300,2.2739,219.94,219.87,2.2746]
[1734341542501,2.16,219.98,219.86,9.85017791]
[1734341542706,3.0472,220.01,219.86,9.85017791]
[1734341542907,3.0472,220.01,219.87,6.16737893]
[1734341543104,3.0472,220.01,219.88,6.16731707]
[1734341543310,2.2736,219.97,219.89,10.60161707]
[1734341543510,3.0472,220.01,219.89,4.4343]
[1734341544008,2.2739,219.95,219.88,2.16]
[1734341544402,2.2739,219.95,219.88,4.4345]